fUSD/lending_fUSD_20250521
["ID","MTS","AMOUNT","RATE_DAILY","PERIOD"]
[361799375,1747813841398,-151.0,0.00035439,7]
[361799376,1747813841408,-151.0,0.00035439,2]
[361799377,1747813841418,-151.0,0.00035439,2]
[361799378,1747813841427,-151.0,0.00035439,2]
[361799379,1747813841437,-151.0,0.00035439,2]
[361799380,1747813841447,-151.0,0.00035439,2]
[361799381,1747813841457,-247.597674,0.00035439,2]
[361799382,1747813841467,-151.0,0.00035439,7]
[361799383,1747813841476,-151.0,0.00035439,7]
[361799384,1747813841486,-213.72136,0.00035439,7]
[361799385,1747813841495,-213.72136,0.00035439,7]
[361799386,1747813841505,-699.7096588,0.00035442,10]
[361799387,1747813841516,-182.99033758,0.00035443,2]
[361799388,1747813841525,-200.0,0.00035443,10]
[361799389,1747813841535,-235.1667163,0.00035445,2]
[361799390,1747813841545,-151.0,0.00035449,7]
[361799391,1747813841556,-233.146234,0.00035449,7]
[361799392,1747813841567,-151.0,0.00035449,7]
[361799393,1747813841577,-151.76759,0.00035449,7]
[361799394,1747813841587,-151.0,0.00035449,7]
[361799396,1747813841597,-151.0,0.00035449,7]
[361799398,1747813841607,-151.0,0.00035449,7]
[361799400,1747813841617,-200.783701,0.00035449,7]
[361799402,1747813841627,-151.0,0.00035449,7]
[361799404,1747813841636,-151.0,0.00035449,7]
[361799406,1747813841646,-151.0,0.00035449,7]
[361799408,1747813841655,-154.306515,0.00035449,7]
[361799410,1747813841665,-151.0,0.00035449,7]
[361799412,1747813841675,-151.0,0.00035449,7]
[361799414,1747813841684,-151.0,0.00035449,7]
[361799416,1747813841694,-151.0,0.00035449,7]
[361799418,1747813841704,-297.56668,0.00035449,7]
[361799420,1747813841713,-153.267968,0.00035449,7]
[361799422,1747813841723,-266.791102,0.00035449,7]
[361799424,1747813841733,-151.0,0.00035449,7]
[361799426,1747813841743,-151.0,0.00035449,7]
[361799427,1747813841752,-209.31509,0.00035449,7]
[361799429,1747813841762,-152.760654,0.00035449,7]
[361799431,1747813841771,-151.0,0.00035449,7]
[361799433,1747813841782,-151.0,0.00035449,7]
[361799436,1747813841791,-151.927932,0.00035449,7]
[361799438,1747813841802,-620.03871535,0.00035452,32]
[361799440,1747813841811,-150.0,0.00035453,2]
[361799441,1747813841821,-151.0,0.00035459,7]
[361799443,1747813841830,-151.0,0.00035459,7]
[361799446,1747813841841,-151.0,0.00035459,7]
[361799447,1747813841850,-151.0,0.00035459,7]
[361799450,1747813841860,-151.0,0.00035459,7]
[361799451,1747813841869,-2824.01154796,0.00035469,10]
[361799453,1747813841879,-150.0,0.00035473,2]
[361799455,1747813841889,-255.51820524,0.0003548,9]
[361799457,1747813841898,-699.7096588,0.00035481,10]
[361799459,1747813841907,-200.0,0.00035482,10]
[361799461,1747813841916,-945.14333345,0.00035488,2]
[361799463,1747813841926,-150.0,0.0003549,2]
[361799465,1747813841936,-150.0,0.0003549,2]
[361799467,1747813841946,-17178.9954743,0.0003549,2]
[361799469,1747813841955,-150.0,0.00035494,2]
[361799471,1747813841965,-183.052116,0.00035498,120]
[361799473,1747813841975,-1245.94,0.000355,5]
[361799475,1747813841985,-1264.07,0.00035502,5]
[361799477,1747813841996,-150.0,0.00035502,2]
[361799479,1747813842011,-525.63,0.00035502,2]
[361799481,1747813842020,-1226.71,0.00035503,5]
[361799483,1747813842031,-150.0,0.00035504,2]
[361799485,1747813842040,-5000.0,0.00035505,2]
[361799487,1747813842050,-1260.68,0.00035505,5]
[361799489,1747813842059,-1253.07,0.00035505,5]
[361799491,1747813842069,-174.67896932,0.00035506,2]
[361799493,1747813842081,-150.0,0.00035506,2]
[361799495,1747813842091,-150.0,0.00035512,2]
[361799497,1747813842100,-150.0,0.00035526,2]
[361799499,1747813842109,-150.0,0.00035536,2]
[361799501,1747813842119,-150.0,0.00035537,2]
[361799503,1747813842128,-302.87,0.00035547,2]
[361799505,1747813842138,-301.28,0.00035547,2]
[361799507,1747813842147,-304.05,0.00035547,2]
[361799509,1747813842158,-300.76,0.00035547,2]
[361799511,1747813842169,-303.69,0.00035547,2]
[361799513,1747813842178,-945.14333345,0.00035548,2]
[361799515,1747813842188,-150.0,0.00035549,2]
[361799517,1747813842197,-150.0,0.0003557,2]
[361799519,1747813842208,-17178.9954743,0.0003557,2]
[361799521,1747813842217,-150.0,0.00035573,2]
[361799523,1747813842227,-151.0,0.00035576,7]
[361799525,1747813842236,-151.0,0.00035576,7]
[361799527,1747813842246,-151.0,0.00035576,7]
[361799529,1747813842255,-151.0,0.00035576,7]
[361799531,1747813842264,-151.0,0.00035576,7]
[361799533,1747813842274,-151.0,0.00035576,7]
[361799535,1747813842284,-151.0,0.00035576,7]
[361799537,1747813842293,-151.0,0.00035576,7]
[361799539,1747813842303,-151.0,0.00035576,7]
[361799541,1747813842312,-151.0,0.00035576,7]
[361799542,1747813842322,-151.0,0.00035576,7]
[361799543,1747813842332,-213.72136,0.00035576,7]
[361799544,1747813842341,-213.72136,0.00035576,7]
[361799545,1747813842351,-17178.9954743,0.0003558,2]
[361799546,1747813842360,-150.0,0.00035582,2]
[361799547,1747813842370,-171789.954743,0.00035585,2]
[361799548,1747813842379,-24121.41593694,0.00035585,2]
[361799549,1747813842395,-118775.85487606,0.00035585,2]
[361799551,1747813842405,-120252.96832,0.00035585,2]
[361799552,1747813842416,-109920.977549,0.00035585,2]
[361799554,1747813842425,-151.0,0.00035585,7]
[361799555,1747813842435,-241.428413,0.00035585,7]
[361799556,1747813842445,-10992.0977549,0.00035585,2]
[361799557,1747813842455,-31703.20729573,0.00035586,2]
[361799558,1747813842476,-900.48983006,0.00035586,2]
[361799559,1747813842490,-779.79811136,0.00035586,2]
[361799560,1747813842527,-10672.81360838,0.00035586,2]
[361799561,1747813842538,-567.992425,0.00035586,2]
[361799564,1747813843395,-4584.09029008,0.00035586,2]
[361799565,1747813843407,-5752.09721379,0.00035586,2]
[361799566,1747813843417,-151.0,0.0003559,7]
[361799567,1747813843427,-152.445254,0.0003559,7]
[361799568,1747813843437,-151.0,0.0003559,7]
[361799569,1747813843447,-151.0,0.0003559,7]
[361799570,1747813843457,-151.0,0.0003559,7]
[361799571,1747813843467,-239.653307,0.0003559,7]
[361799572,1747813843477,-151.0,0.0003559,7]
[361799573,1747813843487,-151.0,0.0003559,7]
[361799574,1747813843496,-151.0,0.0003559,7]
[361799575,1747813843506,-151.0,0.0003559,7]
[361799576,1747813843516,-151.0,0.0003559,7]
[361799577,1747813843526,-21984.1955097,0.0003559,2]
[361799578,1747813843536,-669.11891321,0.00035594,10]
[361799579,1747813843547,-151.0,0.00035595,7]
[361799580,1747813843556,-151.0,0.00035595,7]
[361799581,1747813843566,-151.0,0.00035595,7]
[361799582,1747813843576,-285.260979,0.00035595,7]
[361799583,1747813843586,-151.0,0.00035595,7]
[361799584,1747813843596,-151.0,0.00035595,7]
[361799585,1747813843606,-151.0,0.00035595,7]
[361799586,1747813843616,-185.68035,0.00035595,7]
[361799587,1747813843627,-151.0,0.00035595,7]
[361799588,1747813843638,-214.270273,0.00035595,7]
[361799589,1747813843647,-151.0,0.00035595,7]
[361799590,1747813843659,-151.0,0.00035595,7]
[361799591,1747813843669,-151.0,0.00035595,7]
[361799592,1747813843679,-151.0,0.00035595,7]
[361799593,1747813843689,-151.0,0.00035595,7]
[361799594,1747813843699,-151.0,0.00035595,7]
[361799595,1747813843709,-213.72136,0.00035595,7]
[361799596,1747813843719,-213.72136,0.00035595,7]
[361799597,1747813843729,-213.72136,0.00035595,7]
[361799598,1747813843739,-213.72136,0.00035595,7]
[361799599,1747813843750,-151.0,0.00035596,7]
[361799600,1747813843760,-151.0,0.00035596,7]
[361799601,1747813843771,-151.0,0.00035596,7]
[361799602,1747813843781,-151.0,0.00035596,7]
[361799603,1747813843790,-151.0,0.00035596,7]
[361799604,1747813843801,-151.0,0.00035596,7]
[361799605,1747813843811,-248.287712,0.00035596,7]
[361799606,1747813843820,-213.72136,0.00035596,7]
[361799607,1747813843830,-213.72136,0.00035596,7]
[361799608,1747813843840,-227.052116,0.00035598,120]
[361799609,1747813843849,-1645.30347856,0.000356,7]
[361799610,1747813843859,-515.58888807,0.000356,2]
[361799611,1747813843869,-598.79001842,0.000356,2]
[361799612,1747813843879,-38453.70315742,0.000356,2]
[361799613,1747813843889,-421.89280617,0.000356,2]
[361799614,1747813843899,-163.459713,0.000356,7]
[361799615,1747813843909,-151.0,0.000356,7]
[361799616,1747813843919,-151.0,0.000356,7]
[361799617,1747813843929,-151.0,0.000356,7]
[361799618,1747813843939,-163.0,0.000356,7]
[361799619,1747813843949,-241.428413,0.000356,7]
[361799620,1747813843959,-151.0,0.000356,7]
[361799621,1747813843968,-151.0,0.000356,7]
[361799622,1747813843978,-151.0,0.000356,7]
[361799623,1747813843987,-151.0,0.000356,7]
[361799624,1747813843997,-213.72136,0.000356,7]
[361799625,1747813844012,-213.72136,0.000356,7]
[361799626,1747813844023,-1085.26940586,0.00035604,30]
[361799627,1747813844032,-1000.0,0.00035605,7]
[361799628,1747813844043,-151.0,0.00035605,7]
[361799629,1747813844053,-151.0,0.00035605,7]
[361799630,1747813844063,-151.0,0.00035605,7]
[361799631,1747813844072,-151.0,0.00035605,7]
[361799632,1747813844083,-151.0,0.00035605,7]
[361799633,1747813844093,-151.0,0.00035605,7]
[361799634,1747813844103,-151.0,0.00035605,7]
[361799635,1747813844113,-231.020896,0.00035605,7]
[361799636,1747813844123,-265.1425,0.00035605,2]
[361799637,1747813844132,-150.0,0.00035605,2]
[361799638,1747813844142,-411.253448,0.00035605,7]
[361799639,1747813844152,-241.428413,0.00035605,7]
[361799640,1747813844161,-241.428413,0.00035605,7]
[361799641,1747813844172,-241.428413,0.00035605,7]
[361799642,1747813844181,-5000.0,0.00035605,2]
[361799643,1747813844191,-284.86,0.00035606,2]
[361799644,1747813844201,-151.0,0.00035606,7]
[361799645,1747813844211,-151.0,0.00035606,7]
[361799646,1747813844222,-151.0,0.00035606,7]
[361799647,1747813844232,-151.0,0.00035606,7]
[361799648,1747813844243,-411.253448,0.00035606,7]
[361799649,1747813844253,-411.253448,0.00035606,7]
[361799650,1747813844262,-241.428413,0.00035606,7]
[361799651,1747813844272,-241.428413,0.00035606,7]
[361799652,1747813844282,-945.14333345,0.00035609,2]
[361799653,1747813844292,-1000.0,0.00035615,7]
[361799654,1747813844303,-151.44873,0.00035616,5]
[361799655,1747813844314,-2674.764395,0.00035616,5]
[361799656,1747813844324,-228.273686,0.00035616,5]
[361799657,1747813844334,-157.247922,0.00035616,5]
[361799658,1747813844344,-165.712197,0.00035616,5]
[361799659,1747813844355,-161.097915,0.00035616,5]
[361799660,1747813844365,-420.0,0.00035616,5]
[361799661,1747813844375,-400.3808312,0.00035616,5]
[361799662,1747813844385,-420.0,0.00035616,5]
[361799663,1747813844396,-420.0,0.00035616,5]
[361799664,1747813844406,-420.0,0.00035616,5]
[361799665,1747813844416,-420.0,0.00035616,5]
[361799666,1747813844426,-420.0,0.00035616,5]
[361799667,1747813844436,-401.31038171,0.00035616,5]
[361799668,1747813844446,-420.0,0.00035616,5]
[361799669,1747813844456,-420.0,0.00035616,5]
[361799670,1747813844466,-420.0,0.00035616,5]
[361799671,1747813844476,-420.0,0.00035616,5]
[361799672,1747813844486,-420.0,0.00035616,5]
[361799673,1747813844496,-420.0,0.00035616,5]
[361799674,1747813844506,-467.13763275,0.00035616,5]
[361799675,1747813844517,-420.0,0.00035616,5]
[361799676,1747813844528,-420.0,0.00035616,5]
[361799677,1747813844538,-216.41120881,0.00035616,5]
[361799678,1747813844548,-420.0,0.00035616,5]
[361799679,1747813844558,-420.0,0.00035616,5]
[361799680,1747813844568,-420.0,0.00035616,5]
[361799681,1747813844578,-420.0,0.00035616,5]
[361799682,1747813844588,-420.0,0.00035616,5]
[361799683,1747813844598,-420.0,0.00035616,5]
[361799684,1747813844607,-420.0,0.00035616,5]
[361799685,1747813844617,-420.0,0.00035616,5]
[361799686,1747813844627,-420.0,0.00035616,5]
[361799687,1747813844636,-420.0,0.00035616,5]
[361799688,1747813844647,-420.0,0.00035616,5]
[361799689,1747813844657,-420.0,0.00035616,5]
[361799690,1747813844675,-420.0,0.00035616,5]
[361799691,1747813844685,-420.0,0.00035616,5]
[361799692,1747813844696,-420.0,0.00035616,5]
[361799693,1747813844707,-420.0,0.00035616,5]
[361799694,1747813844717,-420.0,0.00035616,5]
[361799695,1747813844727,-420.0,0.00035616,5]
[361799696,1747813844736,-420.0,0.00035616,5]
[361799697,1747813844747,-420.0,0.00035616,5]
[361799698,1747813844756,-164.073069,0.00035616,5]
[361799699,1747813844766,-420.0,0.00035616,5]
[361799700,1747813844776,-420.0,0.00035616,5]
[361799701,1747813844786,-151.0,0.00035616,2]
[361799702,1747813844797,-420.0,0.00035616,5]
[361799703,1747813844806,-420.0,0.00035616,5]
[361799704,1747813844816,-420.0,0.00035616,5]
[361799706,1747813844826,-420.0,0.00035616,5]
[361799707,1747813844836,-161.588933,0.00035616,5]
[361799709,1747813844846,-420.0,0.00035616,5]
[361799711,1747813844856,-420.0,0.00035616,5]
[361799712,1747813844866,-545.69426634,0.00035616,5]
[361799713,1747813844876,-449.33578735,0.00035616,5]
[361799714,1747813844886,-420.0,0.00035616,5]
[361799715,1747813844895,-420.0,0.00035616,5]
[361799716,1747813844905,-166.434673,0.00035616,5]
[361799717,1747813844915,-420.0,0.00035616,5]
[361799718,1747813844926,-156.515831,0.00035616,5]
[361799719,1747813844936,-420.0,0.00035616,5]
[361799720,1747813844947,-420.0,0.00035616,5]
[361799721,1747813844957,-420.0,0.00035616,5]
[361799722,1747813844967,-420.0,0.00035616,5]
[361799723,1747813844976,-420.0,0.00035616,5]
[361799724,1747813844986,-420.0,0.00035616,5]
[361799726,1747813844997,-420.0,0.00035616,5]
[361799727,1747813845011,-420.0,0.00035616,5]
[361799729,1747813845022,-420.0,0.00035616,5]
[361799730,1747813845032,-420.0,0.00035616,5]
[361799731,1747813845043,-420.0,0.00035616,5]
[361799732,1747813845053,-420.0,0.00035616,5]
[361799733,1747813845063,-420.0,0.00035616,5]
[361799734,1747813845073,-420.0,0.00035616,5]
[361799735,1747813845084,-420.0,0.00035616,5]
[361799736,1747813845094,-420.0,0.00035616,5]
[361799737,1747813845104,-420.0,0.00035616,5]
[361799738,1747813845114,-420.0,0.00035616,5]
[361799739,1747813845124,-420.0,0.00035616,5]
[361799740,1747813845134,-420.0,0.00035616,5]
[361799741,1747813845144,-420.0,0.00035616,5]
[361799742,1747813845154,-420.0,0.00035616,5]
[361799743,1747813845165,-434.06,0.00035616,5]
[361799744,1747813845175,-477.07427583,0.00035616,5]
[361799745,1747813845186,-1042.28,0.00035616,5]
[361799746,1747813845196,-420.0,0.00035616,5]
[361799747,1747813845207,-420.0,0.00035616,5]
[361799748,1747813845216,-420.0,0.00035616,5]
[361799749,1747813845226,-420.0,0.00035616,5]
[361799750,1747813845236,-581.33,0.00035616,5]
[361799751,1747813845246,-420.0,0.00035616,5]
[361799752,1747813845256,-420.0,0.00035616,5]
[361799753,1747813845266,-420.0,0.00035616,5]
[361799754,1747813845276,-441.90244023,0.00035616,5]
[361799755,1747813845286,-406.04183903,0.00035616,5]
[361799756,1747813845296,-420.0,0.00035616,5]
[361799757,1747813845306,-600.43,0.00035616,5]
[361799758,1747813845316,-420.0,0.00035616,5]
[361799759,1747813845327,-420.0,0.00035616,5]
[361799760,1747813845337,-420.0,0.00035616,5]
[361799761,1747813845347,-420.0,0.00035616,5]
[361799762,1747813845356,-1271.63,0.00035616,5]
[361799763,1747813845367,-420.0,0.00035616,5]
[361799764,1747813845377,-420.0,0.00035616,5]
[361799765,1747813845386,-420.0,0.00035616,5]
[361799766,1747813845397,-473.26,0.00035616,5]
[361799767,1747813845407,-420.0,0.00035616,5]
[361799768,1747813845417,-403.14290401,0.00035616,5]
[361799769,1747813845427,-400.0,0.00035616,5]
[361799770,1747813845436,-420.0,0.00035616,5]
[361799771,1747813845446,-420.0,0.00035616,5]
[361799772,1747813845456,-420.0,0.00035616,5]
[361799773,1747813845466,-420.0,0.00035616,5]
[361799774,1747813845476,-420.0,0.00035616,5]
[361799775,1747813845486,-420.0,0.00035616,5]
[361799776,1747813845496,-5000.0,0.00035616,5]
[361799777,1747813845506,-420.0,0.00035616,5]
[361799778,1747813845515,-941.1,0.00035616,5]
[361799779,1747813845526,-420.0,0.00035616,5]
[361799780,1747813845536,-819.9,0.00035616,5]
[361799782,1747813845546,-420.0,0.00035616,5]
[361799784,1747813845557,-507.6,0.00035616,5]
[361799785,1747813845567,-551.99,0.00035616,5]
[361799787,1747813845576,-201.77870368,0.00035616,5]
[361799789,1747813845586,-877.34,0.00035616,5]
[361799790,1747813845596,-420.0,0.00035616,5]
[361799791,1747813845606,-420.0,0.00035616,5]
[361799792,1747813845616,-1172.28,0.00035616,5]
[361799793,1747813845627,-635.2,0.00035616,5]
[361799794,1747813845637,-420.0,0.00035616,5]
[361799795,1747813845646,-420.0,0.00035616,5]
[361799796,1747813845656,-501.52,0.00035616,5]
[361799797,1747813845666,-799.18,0.00035616,5]
[361799798,1747813845677,-420.0,0.00035616,5]
[361799799,1747813845688,-420.0,0.00035616,5]
[361799800,1747813845698,-458.33,0.00035616,5]
[361799801,1747813845708,-892.6,0.00035616,5]
[361799802,1747813845718,-420.0,0.00035616,5]
[361799803,1747813845728,-420.0,0.00035616,5]
[361799804,1747813845739,-411.90498392,0.00035616,5]
[361799805,1747813845749,-820.18,0.00035616,5]
[361799806,1747813845759,-420.0,0.00035616,5]
[361799807,1747813845912,-1096.05,0.00035616,5]
[361799808,1747813845923,-420.0,0.00035616,2]
[361799809,1747813845933,-420.0,0.00035616,5]
[361799810,1747813845943,-1373.96,0.00035616,5]
[361799811,1747813845953,-420.0,0.00035616,5]
[361799812,1747813845963,-669.38,0.00035616,5]
[361799813,1747813845973,-3689.25,0.00035616,5]
[361799814,1747813845982,-420.0,0.00035616,5]
[361799815,1747813845992,-401.79345271,0.00035616,5]
[361799816,1747813846006,-420.0,0.00035616,5]
[361799817,1747813846016,-403.83632865,0.00035616,5]
[361799818,1747813846026,-420.0,0.00035616,5]
[361799819,1747813846036,-401.09987012,0.00035616,5]
[361799820,1747813846046,-420.0,0.00035616,5]
[361799821,1747813846056,-458.62,0.00035616,5]
[361799822,1747813846065,-1057.13,0.00035616,5]
[361799823,1747813846075,-665.69,0.00035616,5]
[361799825,1747813846086,-569.11,0.00035616,5]
[361799826,1747813846095,-420.0,0.00035616,5]
[361799828,1747813846104,-726.17,0.00035616,5]
[361799830,1747813846113,-420.0,0.00035616,5]
[361799832,1747813846123,-400.0,0.00035616,5]
[361799834,1747813846132,-420.0,0.00035616,5]
[361799835,1747813846142,-400.0,0.00035616,5]
[361799836,1747813846151,-420.0,0.00035616,5]
[361799837,1747813846162,-420.0,0.00035616,5]
[361799838,1747813846172,-427.69283801,0.00035616,5]
[361799839,1747813846182,-652.39,0.00035616,5]
[361799840,1747813846192,-1462.58,0.00035616,5]
[361799841,1747813846201,-2090.48830063,0.00035616,30]
[361799842,1747813846210,-420.0,0.00035616,5]
[361799843,1747813846219,-420.0,0.00035616,5]
[361799844,1747813846229,-420.0,0.00035616,5]
[361799845,1747813846239,-420.0,0.00035616,5]
[361799846,1747813846249,-432.33,0.00035616,5]
[361799847,1747813846258,-420.0,0.00035616,5]
[361799848,1747813846268,-420.0,0.00035616,5]
[361799849,1747813846278,-798.08,0.00035616,5]
[361799850,1747813846288,-503.77,0.00035616,5]
[361799851,1747813846297,-420.0,0.00035616,5]
[361799852,1747813846307,-481.54,0.00035616,5]
[361799853,1747813846316,-420.0,0.00035616,5]
[361799854,1747813846325,-562.93,0.00035616,5]
[361799855,1747813846335,-909.69,0.00035616,5]
[361799856,1747813846344,-764.41,0.00035616,5]
[361799857,1747813846354,-420.0,0.00035616,5]
[361799858,1747813846363,-400.14758049,0.00035616,5]
[361799859,1747813846373,-420.0,0.00035616,5]
[361799860,1747813846382,-420.0,0.00035616,5]
[361799861,1747813846392,-650.13,0.00035616,5]
[361799862,1747813846402,-420.0,0.00035616,5]
[361799863,1747813846412,-498.08,0.00035616,5]
[361799864,1747813846422,-420.0,0.00035616,5]
[361799865,1747813846432,-420.0,0.00035616,5]
[361799866,1747813846441,-539.87743879,0.00035616,5]
[361799867,1747813846451,-420.0,0.00035616,5]
[361799868,1747813846461,-452.42,0.00035616,5]
[361799869,1747813846470,-1254.88,0.00035616,5]
[361799870,1747813846480,-1151.7,0.00035616,5]
[361799871,1747813846490,-311.47784562,0.00035616,7]
[361799872,1747813846500,-420.0,0.00035616,5]
[361799873,1747813846510,-669.56,0.00035616,5]
[361799874,1747813846519,-420.0,0.00035616,5]
[361799875,1747813846529,-420.0,0.00035616,5]
[361799876,1747813846538,-2206.12,0.00035616,5]
[361799877,1747813846548,-420.0,0.00035616,5]
[361799878,1747813846558,-420.0,0.00035616,5]
[361799879,1747813846568,-420.0,0.00035616,5]
[361799880,1747813846578,-621.74,0.00035616,5]
[361799881,1747813846588,-402.0026501,0.00035616,5]
[361799882,1747813846598,-420.0,0.00035616,5]
[361799883,1747813846608,-516.78,0.00035616,5]
[361799884,1747813846618,-420.0,0.00035616,5]
[361799885,1747813846628,-420.0,0.00035616,5]
[361799886,1747813846637,-587.03,0.00035616,5]
[361799887,1747813846647,-420.0,0.00035616,5]
[361799888,1747813846656,-420.0,0.00035616,5]
[361799889,1747813846666,-420.0,0.00035616,5]
[361799890,1747813846676,-420.0,0.00035616,5]
[361799891,1747813846685,-133.42653972,0.00035616,5]
[361799932,1747813847590,-286.57346028,0.00035616,5]
[361799933,1747813847600,-531.09283261,0.00035616,5]
[361799934,1747813847610,-182.33370711,0.00035616,5]
[361799935,1747813847622,-237.66629289,0.00035616,5]
[361799936,1747813847631,-262.70284883,0.00035616,5]
[361799937,1747813847649,-237.29715117,0.00035616,5]
[361799938,1747813847659,-400.37529036,0.00035616,5]
[361799939,1747813847668,-420.0,0.00035616,5]
[361799940,1747813847678,-420.0,0.00035616,5]
[361799941,1747813847687,-420.0,0.00035616,5]
[361799942,1747813847697,-420.0,0.00035616,5]
[361799943,1747813847706,-420.0,0.00035616,5]
[361799944,1747813847716,-420.0,0.00035616,5]
[361799945,1747813847726,-424.34,0.00035616,5]
[361799946,1747813847735,-420.0,0.00035616,5]
[361799947,1747813847745,-11.98755847,0.00035616,5]
[361799948,1747813849894,-150.34,0.00035342,2]
[361799949,1747813849906,-408.01244153,0.00035616,5]
[361799950,1747813849917,-420.0,0.00035616,5]
[361799951,1747813849928,-1569.46,0.00035616,5]
[361799952,1747813849938,-420.0,0.00035616,5]
[361799953,1747813849951,-938.74,0.00035616,5]
[361799954,1747813849961,-420.0,0.00035616,5]
[361799955,1747813849972,-213.44755847,0.00035616,5]
[361799956,1747813850101,-191.36103019,0.00035616,5]
[361799957,1747813850114,-61.12141134,0.00035616,5]
[361799958,1747813850125,-420.0,0.00035616,5]
[361799959,1747813850135,-420.0,0.00035616,5]
[361799960,1747813850146,-164.27858866,0.00035616,5]
[361799961,1747813850159,-235.72141134,0.00035616,5]
[361799962,1747813850169,-789.59,0.00035616,5]
[361799963,1747813850180,-420.0,0.00035616,5]
[361799964,1747813850190,-538.75,0.00035616,5]
[361799965,1747813850201,-420.0,0.00035616,5]
[361799966,1747813850214,-420.0,0.00035616,5]
[361799967,1747813850225,-420.0,0.00035616,5]
[361799968,1747813850235,-634.31,0.00035616,5]
[361799969,1747813850245,-420.0,0.00035616,5]
[361799970,1747813850256,-420.0,0.00035616,5]
[361799971,1747813850266,-420.0,0.00035616,5]
[361799972,1747813850283,-420.0,0.00035616,5]
[361799973,1747813850293,-420.0,0.00035616,5]
[361799974,1747813850303,-420.0,0.00035616,5]
[361799975,1747813850314,-420.0,0.00035616,5]
[361799976,1747813850325,-420.0,0.00035616,5]
[361799977,1747813850335,-420.0,0.00035616,5]
[361799978,1747813850346,-743.36,0.00035616,5]
[361799979,1747813850356,-1246.03,0.00035616,5]
[361799980,1747813850367,-1194.38,0.00035616,5]
[361799981,1747813850377,-420.0,0.00035616,5]
[361799982,1747813850388,-420.0,0.00035616,5]
[361799983,1747813850398,-498.98,0.00035616,5]
[361799984,1747813850410,-420.0,0.00035616,5]
[361799985,1747813850421,-420.0,0.00035616,5]
[361799986,1747813850432,-1466.26,0.00035616,5]
[361799987,1747813850442,-420.0,0.00035616,5]
[361799988,1747813850453,-420.0,0.00035616,5]
[361799989,1747813850464,-385.59411941,0.00035616,5]
[361799990,1747813850474,-420.0,0.00035616,5]
[361799991,1747813850485,-686.43,0.00035616,5]
[361799992,1747813850496,-420.0,0.00035616,5]
[361799993,1747813850507,-1528.56,0.00035616,5]
[361799994,1747813850519,-420.0,0.00035616,5]
[361799995,1747813850530,-825.65,0.00035616,5]
[361799996,1747813850541,-420.0,0.00035616,3]
[361799997,1747813850551,-420.0,0.00035616,5]
[361799998,1747813850562,-449.60436065,0.00035616,5]
[361799999,1747813850579,-74.46563935,0.00035616,5]
[361800000,1747813850589,-420.0,0.00035616,5]
[361800001,1747813850600,-43.97050245,0.00035616,5]
[361800002,1747813850613,-478.77949755,0.00035616,5]
[361800003,1747813850625,-4.32278515,0.00035616,5]
[361800004,1747813850638,-415.67721485,0.00035616,5]
[361800005,1747813850649,-328.41589273,0.00035616,5]